bitfinex/quotes_SOLUSD_20250624
["timestamp","ask_amount","ask_price","bid_price","bid_amount"]
[1750729559727,5.70869446,143.56,143.53,12.5]
[1750729560063,5.70869446,143.55,143.53,12.5]
[1750729560226,31.70869446,143.6,143.53,12.5]
[1750729560431,5.70869446,143.57,143.53,12.5]
[1750729561149,26.0,143.6,143.53,12.5]
[1750729561331,5.70869446,143.57,143.53,18.20869446]
[1750729561533,5.70869446,143.57,143.53,12.5]
[1750729561744,5.70869446,143.55,143.53,12.5]
[1750729562338,8.5881318,143.55,143.53,12.5]
[1750729563034,8.5881318,143.56,143.53,12.5]
[1750729564560,8.5881318,143.55,143.53,12.5]
[1750729564762,0.14216157,143.53,143.48,94.69632707]
[1750729565130,8.5881318,143.49,143.45,8.5881318]
[1750729565437,8.5881318,143.5,143.45,8.5881318]
[1750729565635,8.5881318,143.49,143.45,8.5881318]
[1750729567543,8.5881318,143.49,143.44,14.6681318]
[1750729568746,8.5881318,143.48,143.44,14.6681318]
[1750729568948,8.5881318,143.48,143.44,6.08]
[1750729569149,8.5881318,143.48,143.44,14.6681318]
[1750729572265,8.5881318,143.48,143.44,6.08]
[1750729572438,8.5881318,143.48,143.44,14.6681318]
[1750729573045,8.5881318,143.49,143.44,14.6681318]
[1750729573540,8.5881318,143.49,143.44,104.0681318]
[1750729575375,8.5881318,143.48,143.44,104.0681318]
[1750729575973,8.5881318,143.49,143.44,104.0681318]
[1750729576470,8.5881318,143.48,143.44,104.0681318]
[1750729576651,26.0,143.5,143.44,104.0681318]
[1750729576851,8.5881318,143.48,143.44,104.0681318]
[1750729578450,8.5881318,143.49,143.44,104.0681318]
[1750729579561,29.41867624,143.53,143.46,8.5881318]
[1750729579767,8.5881318,143.51,143.46,8.5881318]
[1750729580470,8.5881318,143.52,143.48,8.5881318]
[1750729580643,1.639,143.59,143.51,8.5881318]
[1750729580846,8.5881318,143.56,143.52,14.7081318]
[1750729581869,8.5881318,143.56,143.52,6.12]
[1750729582364,5.7237202,143.57,143.52,11.8437202]
[1750729582674,5.7237202,143.58,143.54,5.7237202]
[1750729583779,5.7237202,143.59,143.54,5.7237202]
[1750729583962,5.7237202,143.58,143.54,5.7237202]
[1750729584161,5.7237202,143.58,143.53,6.96713798]
[1750729584470,5.7237202,143.58,143.54,5.7237202]
[1750729585158,5.7237202,143.59,143.54,12.69040801]
[1750729586679,5.7237202,143.58,143.54,5.7237202]
[1750729587056,5.7237202,143.59,143.54,5.7237202]
[1750729587885,5.7237202,143.59,143.55,5.7237202]
[1750729588380,5.7237202,143.59,143.54,5.7237202]
[1750729588755,5.7237202,143.6,143.55,7.3381202]
[1750729589077,5.7237202,143.61,143.56,5.7237202]
[1750729589481,5.7237202,143.62,143.58,5.7237202]
[1750729589672,5.7237202,143.63,143.58,5.7237202]
[1750729589995,5.7237202,143.63,143.58,11.8437202]
[1750729590884,26.0,143.63,143.58,6.12]
[1750729591066,5.7237202,143.61,143.58,6.12]
[1750729591763,26.0,143.63,143.58,6.12]
[1750729591966,5.7237202,143.62,143.58,6.12]
[1750729592483,26.0,143.63,143.58,6.12]
[1750729592484,5.7237202,143.61,143.58,6.12]
[1750729592686,5.7237202,143.6,143.58,6.12]
[1750729592875,5.7237202,143.59,143.58,6.12]
[1750729593069,5.7237202,143.6,143.58,6.12]
[1750729593874,5.7237202,143.59,143.55,5.7237202]
[1750729594193,26.0,143.63,143.57,5.7237202]
[1750729594194,5.7237202,143.61,143.57,5.7237202]
[1750729596294,5.7237202,143.62,143.57,5.7237202]
[1750729596675,31.7237202,143.63,143.58,5.7237202]
[1750729596992,5.7237202,143.63,143.58,5.7237202]
[1750729598297,5.7237202,143.63,143.58,12.68846298]
[1750729599201,5.7237202,143.63,143.58,5.7237202]
[1750729599373,5.7237202,143.62,143.58,5.7237202]
[1750729600065,5.7237202,143.62,143.57,14.66282526]
[1750729600066,5.7237202,143.61,143.56,89.4]
[1750729600269,5.7237202,143.61,143.56,102.08933693]
[1750729600591,5.7237202,143.62,143.57,5.7237202]
[1750729601175,5.7237202,143.62,143.57,12.6888162]
[1750729602985,5.7237202,143.62,143.58,12.68838494]
[1750729603684,5.7237202,143.62,143.58,6.96466474]
[1750729603885,5.7237202,143.62,143.57,102.08878905]
[1750729605008,5.7237202,143.62,143.58,5.7237202]
[1750729605314,5.7237202,143.62,143.58,12.68819636]
[1750729606086,5.7237202,143.62,143.58,102.08819636]
[1750729610702,5.7237202,143.62,143.58,96.36447616]
[1750729613238,5.7237202,143.61,143.58,89.4]
[1750729613890,18.52034344,143.67,143.61,18.64964886]
[1750729614090,13.36623229,143.67,143.62,44.64964886]
[1750729614310,13.36623229,143.67,143.66,5.7237202]
[1750729614624,1.556,143.75,143.66,5.7237202]
[1750729614625,5.7237202,143.73,143.67,18.64964886]
[1750729614816,5.7237202,143.73,143.68,5.7237202]
[1750729614997,1.556,143.75,143.67,18.64964886]
[1750729614998,5.7237202,143.74,143.69,5.7237202]
[1750729615319,5.7237202,143.74,143.7,12.68266244]
[1750729615904,5.7237202,143.76,143.71,5.7237202]
[1750729616204,6.0272,143.77,143.72,5.7237202]
[1750729616205,5.7237202,143.77,143.72,5.7237202]
[1750729616511,5.7237202,143.77,143.72,11.8237202]
[1750729617306,5.7237202,143.77,143.72,18.7813553]
[1750729618027,5.7237202,143.77,143.73,5.7237202]
[1750729618217,5.7237202,143.77,143.72,13.0576351]
[1750729618398,5.7237202,143.77,143.72,18.7813553]
[1750729618788,5.7237202,143.76,143.72,13.0576351]
[1750729618991,5.7237202,143.73,143.72,6.1]
[1750729619194,5.7237202,143.73,143.66,95.541]
[1750729619195,5.7237202,143.73,143.67,13.06022176]
[1750729619416,5.7237202,143.71,143.67,13.06022176]
[1750729621797,5.7237202,143.71,143.67,18.78394196]
[1750729621994,5.7237202,143.72,143.67,18.78394196]
[1750729622198,0.14216157,143.75,143.68,5.7237202]
[1750729622525,5.7237202,143.72,143.68,5.7237202]
[1750729622717,5.7237202,143.75,143.71,5.7237202]
[1750729623124,31.7237202,143.76,143.71,5.7237202]
[1750729623630,5.7237202,143.75,143.7,5.7237202]
[1750729624000,26.0,143.76,143.68,108.04964886]
[1750729624001,5.7237202,143.74,143.69,5.7237202]
[1750729624202,5.7237202,143.71,143.68,89.4]
[1750729624410,5.7237202,143.71,143.67,108.18404063]
[1750729624703,5.7237202,143.72,143.67,108.18404063]
[1750729625115,5.7237202,143.72,143.67,101.2237202]
[1750729625613,5.7237202,143.71,143.67,95.5]
[1750729625811,5.7237202,143.68,143.65,89.4]
[1750729626035,5.7237202,143.67,143.63,18.78581872]
[1750729626208,26.0,143.71,143.63,13.06209852]
[1750729626409,5.7237202,143.68,143.63,18.78581872]
[1750729626631,5.7237202,143.67,143.63,101.2237202]
[1750729626934,5.7237202,143.67,143.63,102.46223037]
[1750729627112,5.7237202,143.67,143.63,101.2237202]
[1750729627310,5.7237202,143.67,143.63,95.5]
[1750729627513,5.7237202,143.67,143.63,108.1859473]
[1750729629836,5.7237202,143.67,143.63,18.7859473]
[1750729630431,5.7237202,143.67,143.63,13.0622271]
[1750729630934,5.7237202,143.66,143.63,6.1]
[1750729632531,5.7237202,143.67,143.63,13.06226785]
[1750729633235,0.14216157,143.7,143.63,13.06226785]
[1750729633535,5.7237202,143.67,143.63,13.06226785]
[1750729635744,5.7237202,143.67,143.63,102.46226785]
[1750729635925,5.7237202,143.68,143.63,108.18598805]
[1750729637038,26.0,143.71,143.65,5.7237202]
[1750729637235,26.0,143.71,143.65,95.1237202]
[1750729637236,5.7237202,143.7,143.65,95.1237202]
[1750729637827,5.7237202,143.7,143.66,6.96087985]
[1750729638941,5.7237202,143.69,143.66,6.96087985]
[1750729640542,26.0,143.71,143.66,6.96087985]
[1750729640747,5.7237202,143.7,143.66,6.96087985]
[1750729641038,26.0,143.71,143.66,6.96087985]
[1750729641233,5.7237202,143.69,143.66,6.96087985]
[1750729642442,5.7237202,143.7,143.66,12.68460005]
[1750729642651,7.2890202,143.76,143.67,5.7237202]
[1750729642652,5.7237202,143.72,143.67,5.7237202]
[1750729642951,5.7237202,143.71,143.67,5.7237202]
[1750729643328,5.7237202,143.71,143.66,12.68460005]
[1750729644353,5.7237202,143.71,143.67,5.7237202]
[1750729645728,5.7237202,143.72,143.68,5.7237202]
[1750729646346,5.7237202,143.72,143.68,12.68328854]
[1750729646551,5.7237202,143.72,143.68,6.95956834]
[1750729647556,5.7237202,143.71,143.68,6.95956834]
[1750729654454,5.7237202,143.73,143.68,102.08328854]
[1750729654669,6.74400387,143.76,143.69,5.7237202]
[1750729654670,5.7237202,143.74,143.69,5.7237202]
[1750729654835,5.7237202,143.74,143.7,5.7237202]
[1750729655166,5.7237202,143.75,143.71,5.7237202]
[1750729655455,5.7237202,143.76,143.71,5.7237202]
[1750729656251,5.7237202,143.76,143.72,6.95797383]
[1750729658548,10.90242407,143.77,143.72,12.68169403]
[1750729658765,5.7237202,143.77,143.72,12.68169403]
[1750729658971,5.17870387,143.78,143.72,6.95797383]
[1750729659132,5.7237202,143.78,143.72,6.95797383]
[1750729659459,5.7237202,143.75,143.71,6.95833955]
[1750729659631,5.7237202,143.73,143.7,13.19737979]
[1750729660758,5.7237202,143.73,143.7,6.95877979]
[1750729663470,5.7237202,143.72,143.69,6.2]
[1750729664048,5.7237202,143.71,143.69,6.2]
[1750729665149,5.7237202,143.7,143.69,6.2]
[1750729665346,5.7237202,143.71,143.69,6.2]
[1750729666550,5.7237202,143.72,143.69,6.2]
[1750729669949,5.7237202,143.71,143.69,6.2]
[1750729670350,5.7237202,143.7,143.69,6.2]
[1750729670756,5.7237202,143.7,143.64,13.20181631]
[1750729670974,5.7237202,143.68,143.64,13.20181631]
[1750729671167,5.7237202,143.67,143.64,6.24]
[1750729673702,5.7237202,143.67,143.64,13.20183694]
[1750729674772,5.7237202,143.68,143.64,13.20183694]
[1750729675174,5.17870387,143.7,143.64,13.20183694]
[1750729675389,5.7237202,143.69,143.65,5.7237202]
[1750729675890,5.7237202,143.69,143.64,18.92555714]
[1750729676183,5.7237202,143.68,143.64,6.24]
[1750729678359,5.7237202,143.67,143.64,6.24]
[1750729680478,5.7237202,143.67,143.64,13.20175524]
[1750729681463,5.7237202,143.68,143.64,13.20175524]
[1750729682261,5.17870387,143.71,143.64,18.92547544]
[1750729682456,27.6241,143.72,143.65,5.7237202]
[1750729682457,5.17870387,143.7,143.65,5.7237202]
[1750729682698,5.7237202,143.71,143.66,5.7237202]
[1750729682884,5.7237202,143.71,143.64,56.6063779]
[1750729683075,5.7237202,143.7,143.65,24.37336906]
[1750729684689,5.7237202,143.7,143.66,6.96087985]
[1750729685186,5.7237202,143.69,143.66,6.96087985]
[1750729685362,5.7237202,143.68,143.65,89.4]
[1750729685874,6.47337984,143.73,143.65,89.4]
[1750729685875,5.7237202,143.67,143.65,89.4]
[1750729686067,5.7237202,143.67,143.64,13.20148883]
[1750729686685,5.7237202,143.68,143.64,13.20148883]
[1750729689101,5.17870387,143.71,143.64,18.92520903]
[1750729689266,5.7237202,143.68,143.64,108.32520903]
[1750729690277,5.7237202,143.69,143.64,108.32520903]
[1750729690884,5.7237202,143.71,143.65,18.64964886]
[1750729691084,5.7237202,143.7,143.65,18.64964886]
[1750729691291,5.7237202,143.7,143.65,24.37336906]
[1750729691493,5.7237202,143.68,143.64,95.64]
[1750729691803,5.7237202,143.67,143.64,6.24]
[1750729692406,5.7237202,143.67,143.64,13.20184811]
[1750729693906,5.7237202,143.68,143.64,13.20184811]
[1750729694484,5.7237202,143.69,143.64,18.92556831]
[1750729695003,5.7237202,143.69,143.64,108.32556831]
[1750729696494,5.7237202,143.69,143.64,102.60184811]
[1750729696696,5.7237202,143.68,143.64,102.60184811]
[1750729697385,5.7237202,143.68,143.64,108.32556831]
[1750729698480,5.7237202,143.69,143.64,108.32556831]
[1750729698796,5.7237202,143.68,143.64,102.60184811]
[1750729701581,5.7237202,143.65,143.6,14.3307]
[1750729701803,5.7237202,143.62,143.6,95.56]
[1750729702130,5.7237202,143.61,143.6,6.16]
[1750729704802,5.7237202,143.62,143.6,6.16]
[1750729705507,5.7237202,143.61,143.6,6.16]
[1750729716130,5.7237202,143.62,143.6,6.16]
[1750729717922,32.2443,143.66,143.6,13.12366759]
[1750729717923,5.7237202,143.64,143.6,13.12366759]
[1750729718505,5.7237202,143.63,143.6,13.12366759]
[1750729720204,5.7237202,143.63,143.48,14.2541]
[1750729720205,18.64964886,143.59,143.48,14.2541]
[1750729720409,5.7237202,143.49,143.48,6.16]
[1750729720718,5.7237202,143.49,143.44,8.0941]
[1750729720719,5.86588177,143.49,143.44,8.0941]
[1750729720901,5.7237202,143.48,143.43,11.8837202]
[1750729721702,0.14216157,143.49,143.43,6.16]
[1750729721703,5.7237202,143.47,143.43,6.16]
[1750729722107,5.7237202,143.47,143.43,11.8837202]
[1750729723111,5.7237202,143.47,143.43,18.85570305]
[1750729723807,5.7237202,143.47,143.43,13.13198285]
[1750729724327,5.7237202,143.47,143.43,18.85570305]
[1750729725713,5.7237202,143.48,143.43,18.85570305]
[1750729729230,0.14216157,143.51,143.43,18.85570305]
[1750729729430,5.7237202,143.48,143.43,108.25570305]
[1750729730138,19.92974634,143.53,143.43,108.25570305]
[1750729730139,18.42274634,143.53,143.47,18.64964886]
[1750729730337,18.42274634,143.53,143.51,5.7237202]
[1750729730538,18.42274634,143.53,143.49,32.6]
[1750729730710,18.42274634,143.53,143.49,38.3237202]
[1750729731130,18.42274634,143.53,143.51,6.96815552]
[1750729733316,18.42274634,143.53,143.51,12.69187572]
[1750729734234,18.42274634,143.53,143.52,5.7237202]
[1750729734431,18.42274634,143.53,143.51,12.69187572]
[1750729734833,18.42274634,143.53,143.52,5.7237202]
[1750729736739,18.42274634,143.53,143.52,12.69139021]
[1750729739243,18.42274634,143.53,143.52,102.09139021]
[1750729739818,18.42274634,143.53,143.52,96.36767001]
[1750729740139,18.42274634,143.53,143.52,146.88320064]
[1750729740341,18.42274634,143.53,143.52,45.22142084]
[1750729740543,5.7237202,143.61,143.55,26.0]
[1750729740713,5.7237202,143.61,143.56,5.7237202]
[1750729741134,1.5062,143.64,143.56,5.7237202]
[1750729741334,5.7237202,143.61,143.57,6.96524343]
[1750729743463,5.7237202,143.61,143.54,17.41592313]
[1750729743464,26.0,143.62,143.52,8.0145]
[1750729743757,5.7237202,143.55,143.51,31.7237202]
[1750729744232,5.7237202,143.55,143.49,114.64964886]
[1750729744554,5.7237202,143.54,143.5,5.7237202]
[1750729745256,5.7237202,143.54,143.49,30.97336906]
[1750729745632,5.7237202,143.54,143.5,6.96864111]
[1750729745939,5.7237202,143.54,143.5,12.69236131]
[1750729746138,5.7237202,143.54,143.5,6.96864111]
[1750729749068,5.7237202,143.55,143.5,12.69236131]
[1750729754076,5.7237202,143.55,143.5,102.09236131]
[1750729754479,5.7237202,143.54,143.5,102.09236131]
[1750729754671,0.14216157,143.57,143.5,102.09236131]
[1750729754849,5.7237202,143.55,143.5,102.09236131]
[1750729756271,0.14216157,143.57,143.5,96.36864111]
[1750729756272,5.7237202,143.53,143.5,96.36864111]
[1750729756982,3.45131266,143.59,143.52,5.7237202]
[1750729757150,1.5913,143.61,143.54,5.7237202]
[1750729757458,5.7237202,143.59,143.54,5.7237202]
[1750729757660,26.0,143.6,143.54,5.7237202]
[1750729757974,1.5913,143.61,143.54,6.96669917]
[1750729757975,5.7237202,143.58,143.54,6.96669917]
[1750729758158,1.5913,143.61,143.54,12.69041937]
[1750729758159,5.7237202,143.59,143.54,12.69041937]
[1750729759064,7.3150202,143.61,143.55,5.7237202]
[1750729759257,7.3150202,143.61,143.56,5.7237202]
[1750729759878,7.3150202,143.61,143.57,6.96524343]
[1750729760257,5.7237202,143.6,143.57,6.96524343]
[1750729760472,7.3150202,143.61,143.57,6.96524343]
[1750729760662,5.7237202,143.6,143.57,6.96524343]
[1750729761458,5.7237202,143.6,143.56,6.96572861]
[1750729761979,7.3150202,143.61,143.56,12.68944881]
[1750729762865,7.3150202,143.61,143.56,102.08944881]
[1750729763254,26.0,143.64,143.56,96.36572861]
[1750729763457,5.7237202,143.62,143.57,5.7237202]
[1750729763658,5.7237202,143.61,143.56,102.08944881]
[1750729763886,26.0,143.64,143.57,24.37336906]
[1750729764091,5.7237202,143.62,143.57,24.37336906]
[1750729764787,26.0,143.64,143.57,24.37336906]
[1750729764958,1.6487,143.65,143.58,31.7237202]
[1750729765159,5.7237202,143.63,143.58,31.7237202]
[1750729765460,5.7237202,143.59,143.55,32.6]
[1750729765961,5.7237202,143.59,143.55,39.56607465]
[1750729766262,5.7237202,143.59,143.55,6.6]
[1750729766461,5.7237202,143.57,143.55,6.6]
[1750729767862,5.7237202,143.56,143.55,6.6]
[1750729768585,5.7237202,143.57,143.55,6.6]
[1750729770661,0.14216157,143.6,143.55,6.6]
[1750729770862,5.7237202,143.57,143.55,6.6]
[1750729771591,5.7237202,143.58,143.55,6.6]
[1750729772096,5.7237202,143.57,143.55,6.6]
[1750729774177,5.7237202,143.56,143.55,6.6]
[1750729775895,5.7237202,143.57,143.55,6.6]
[1750729778303,5.7237202,143.56,143.55,6.6]
[1750729778999,5.7237202,143.57,143.55,6.6]
[1750729779301,5.7237202,143.56,143.55,6.6]
[1750729781703,10.90690246,143.6,143.55,6.6]
[1750729781906,5.7237202,143.56,143.55,6.6]
[1750729783374,31.18318226,143.61,143.55,6.6]
[1750729783575,5.7237202,143.57,143.55,6.6]
[1750729786069,31.18318226,143.61,143.55,6.6]
[1750729786316,5.7237202,143.57,143.55,6.6]
[1750729786598,0.14216157,143.62,143.55,13.56612346]
[1750729786599,5.7237202,143.59,143.55,13.56612346]
[1750729787974,5.7237202,143.58,143.55,13.56612346]
[1750729788174,5.7237202,143.59,143.55,13.56612346]
[1750729789788,5.7237202,143.58,143.55,13.56612346]
[1750729792497,5.7237202,143.58,143.55,102.96612346]
[1750729792901,5.7237202,143.57,143.55,102.96612346]
[1750729793832,5.7237202,143.57,143.55,96.0]
[1750729796401,5.18318226,143.61,143.55,102.96612724]
[1750729796587,5.7237202,143.58,143.55,13.56612724]
[1750729796795,5.7237202,143.58,143.55,102.96612724]
[1750729798289,5.18318226,143.61,143.55,102.96612724]
[1750729798502,5.7237202,143.58,143.55,102.96612724]
[1750729800310,5.7237202,143.58,143.55,96.0]
[1750729800496,5.7237202,143.57,143.55,96.0]
[1750729801219,5.7237202,143.58,143.55,102.96611446]
[1750729802910,5.7237202,143.58,143.55,96.0]
[1750729803112,5.7237202,143.57,143.55,96.0]
[1750729803998,5.7237202,143.58,143.55,96.0]
[1750729804707,5.7237202,143.58,143.55,102.96617107]
[1750729804911,5.18318226,143.6,143.55,102.96617107]
[1750729805126,5.7237202,143.58,143.55,102.96617107]
[1750729805412,5.18318226,143.62,143.55,102.96617107]
[1750729805718,5.7237202,143.59,143.55,102.96617107]
[1750729806528,35.96352339,143.64,143.55,96.0]
[1750729806529,5.7237202,143.56,143.55,96.0]
[1750729806812,10.90690246,143.56,143.49,13.66904979]
[1750729807002,5.7237202,143.51,143.49,6.7]
[1750729807202,5.7237202,143.51,143.49,13.66910931]
[1750729807610,5.7237202,143.52,143.49,13.66910931]
[1750729809307,5.7237202,143.51,143.49,13.66911221]
[1750729809513,5.7237202,143.55,143.5,24.37336906]
[1750729809708,5.7237202,143.54,143.5,108.04964886]
[1750729810735,5.7237202,143.54,143.51,6.96815552]
[1750729811421,5.7237202,143.55,143.51,6.96815552]
[1750729811797,5.7237202,143.56,143.51,20.54087572]
[1750729812208,31.18318226,143.58,143.51,20.54087572]
[1750729812209,5.18318226,143.58,143.51,20.54087572]
[1750729812405,5.7237202,143.56,143.51,20.54087572]
[1750729812608,5.7237202,143.57,143.52,5.7237202]
[1750729812918,5.7237202,143.57,143.53,6.96718456]
[1750729816005,5.7237202,143.58,143.53,102.09090476]
[1750729816626,5.7237202,143.59,143.54,24.37336906]
[1750729816818,5.7237202,143.59,143.54,113.77336906]
[1750729817127,5.7237202,143.59,143.55,6.96621386]
[1750729817999,5.7237202,143.58,143.55,6.96621386]
[1750729819525,5.7237202,143.57,143.54,89.4]
[1750729819925,5.7237202,143.56,143.54,89.4]
[1750729820128,5.7237202,143.56,143.53,103.06682411]
[1750729826038,5.7237202,143.57,143.53,103.06682411]
[1750729827139,5.7237202,143.56,143.53,103.06682411]
[1750729827842,5.7237202,143.56,143.53,96.1]
[1750729828220,5.7237202,143.55,143.53,96.1]
[1750729829644,5.7237202,143.54,143.53,96.1]
[1750729830244,5.18318226,143.59,143.54,18.64964886]
[1750729830424,5.7237202,143.6,143.55,5.7237202]
[1750729830625,5.7237202,143.6,143.54,24.37336906]
[1750729830828,5.7237202,143.59,143.54,24.37336906]
[1750729831030,5.7237202,143.59,143.54,18.64964886]
[1750729832045,5.7237202,143.59,143.55,6.96621386]
[1750729836332,5.7237202,143.58,143.55,6.96621386]
[1750729836736,5.18318226,143.61,143.55,96.36621386]
[1750729837123,5.7237202,143.58,143.55,96.36621386]
[1750729839052,6.81078226,143.62,143.55,96.36621386]
[1750729839235,5.7237202,143.59,143.55,96.36621386]
[1750729840155,5.7237202,143.6,143.55,102.08993406]
[1750729840363,5.7237202,143.6,143.55,12.68993406]
[1750729841651,5.18318226,143.62,143.56,24.37336906]
[1750729841955,5.7237202,143.61,143.56,24.37336906]
[1750729842629,5.18318226,143.62,143.58,5.7237202]
[1750729842835,5.7237202,143.65,143.6,5.7237202]
[1750729843044,5.7237202,143.64,143.6,89.4]
[1750729843657,1.559,143.66,143.6,89.4]
[1750729843877,5.7237202,143.64,143.6,89.4]
[1750729844061,5.7237202,143.65,143.6,95.1237202]
[1750729844259,5.7237202,143.66,143.61,24.37336906]
[1750729844442,5.7237202,143.66,143.62,5.7237202]
[1750729844644,5.7237202,143.66,143.63,6.96233377]
[1750729844824,5.7237202,143.67,143.63,6.96233377]
[1750729845025,34.74756157,143.68,143.63,12.68605397]
[1750729845231,29.02384137,143.68,143.63,12.68605397]
[1750729845536,34.74756157,143.68,143.63,12.68605397]
[1750729848348,5.7237202,143.67,143.63,12.68605397]
[1750729848543,5.7237202,143.67,143.63,102.08605397]
[1750729849034,29.02384137,143.68,143.63,102.08605397]
[1750729849236,5.7237202,143.67,143.63,102.08605397]
[1750729853937,5.7237202,143.67,143.63,96.36233377]
[1750729854263,5.7237202,143.65,143.61,108.04964886]
[1750729854438,34.74756157,143.68,143.61,89.4]
[1750729854644,5.7237202,143.63,143.61,89.4]
[1750729854850,0.14216157,143.67,143.6,89.4]
[1750729855052,5.7237202,143.64,143.59,120.41336906]
[1750729856150,5.7237202,143.64,143.59,127.37746834]
[1750729858067,0.14216157,143.67,143.59,127.37746834]
[1750729858372,5.7237202,143.64,143.59,127.37746834]
[1750729859173,5.7237202,143.67,143.62,5.7237202]
[1750729859375,5.7237202,143.66,143.62,18.64964886]
[1750729859581,5.7237202,143.66,143.62,108.04964886]
[1750729860168,5.7237202,143.66,143.62,115.01201873]
[1750729861166,5.7237202,143.65,143.62,89.4]
[1750729861376,5.7237202,143.64,143.62,89.4]
[1750729862974,5.7237202,143.65,143.62,89.4]
[1750729863477,5.7237202,143.65,143.61,96.3632256]
[1750729864177,29.02384137,143.68,143.62,24.37336906]
[1750729864475,29.02384137,143.68,143.62,18.64964886]
[1750729864476,5.7237202,143.66,143.62,18.64964886]
[1750729865476,5.7237202,143.66,143.62,25.61207414]
[1750729866576,5.7237202,143.67,143.62,31.33579434]
[1750729867282,5.7237202,143.68,143.63,13.8394202]
[1750729867458,5.7237202,143.7,143.64,24.37336906]
[1750729867660,1.78696157,143.74,143.65,6.52]
[1750729867661,5.7237202,143.69,143.65,6.52]
[1750729868781,5.7237202,143.69,143.65,13.48100778]
[1750729869170,5.7237202,143.7,143.65,19.20472798]
[1750729870067,5.7237202,143.7,143.65,13.48100778]
[1750729871072,5.7237202,143.7,143.66,5.7237202]
[1750729871271,5.7237202,143.71,143.67,18.64964886]
[1750729871876,1.6448,143.74,143.67,18.64964886]
[1750729872077,5.7237202,143.71,143.67,108.04964886]
[1750729872586,0.14216157,143.77,143.67,108.04964886]
[1750729872587,14.05705353,143.83,143.76,18.64964886]
[1750729872789,5.7237202,143.8,143.77,6.5]
[1750729873091,5.7237202,143.79,143.77,6.5]
[1750729873967,5.7237202,143.8,143.77,13.45549506]
[1750729874167,8.33333333,143.83,143.77,13.45549506]
[1750729874168,5.7237202,143.81,143.77,13.45549506]
[1750729874570,5.7237202,143.8,143.77,6.5]
[1750729874772,5.7237202,143.8,143.77,13.45554789]
[1750729875187,8.33333333,143.83,143.77,13.45554789]
[1750729875380,5.7237202,143.8,143.77,13.45554789]
[1750729875985,5.7237202,143.81,143.77,13.45554789]
[1750729876588,5.7237202,143.8,143.77,13.45554789]
[1750729877388,5.7237202,143.79,143.77,13.45554789]
[1750729878797,5.7237202,143.78,143.75,6.5]
[1750729878977,5.7237202,143.76,143.75,6.5]
[1750729879181,8.4754949,143.83,143.75,6.5]
[1750729879182,5.7237202,143.77,143.75,6.5]
[1750729880869,5.7237202,143.77,143.75,13.45634251]
[1750729881488,5.7237202,143.78,143.75,13.45634251]
[1750729882095,8.33333333,143.83,143.75,39.45634251]
[1750729882279,5.7237202,143.8,143.75,45.18006271]
[1750729882497,5.7237202,143.8,143.76,18.64964886]
[1750729882674,5.7237202,143.79,143.76,18.64964886]
[1750729882987,5.7237202,143.79,143.76,25.60532758]
[1750729883184,5.7237202,143.78,143.75,39.45642748]
[1750729884991,8.33333333,143.83,143.75,39.45642748]
[1750729885183,8.33333333,143.83,143.78,18.64964886]
[1750729885392,14.05705353,143.83,143.78,139.77336906]
[1750729885580,8.33333333,143.83,143.78,139.77336906]
[1750729885894,5.7237202,143.8,143.76,25.91136906]
[1750729886099,5.7237202,143.79,143.77,6.4]
[1750729886392,8.33333333,143.83,143.77,6.4]
[1750729886611,5.7237202,143.8,143.77,6.4]
[1750729886893,5.7237202,143.81,143.77,25.04964886]
[1750729887098,5.7237202,143.79,143.77,13.35531994]
[1750729887403,8.33333333,143.83,143.77,13.35531994]
[1750729887575,5.7237202,143.82,143.78,18.64964886]
[1750729887774,8.33333333,143.83,143.78,18.64964886]
[1750729887775,5.7237202,143.81,143.78,18.64964886]
[1750729887977,5.7237202,143.8,143.77,102.75531994]
[1750729888298,5.7237202,143.81,143.77,13.35531994]
[1750729888504,8.33333333,143.83,143.78,18.64964886]
[1750729888505,5.7237202,143.82,143.78,18.64964886]
[1750729889076,8.33333333,143.83,143.79,30.06477311]
[1750729889276,8.33333333,143.83,143.8,18.64964886]
[1750729889476,8.33333333,143.83,143.8,24.37336906]
[1750729890004,8.33333333,143.83,143.82,24.37336906]
[1750729890709,8.33333333,143.83,143.82,18.64964886]
[1750729890999,8.33333333,143.83,143.82,25.60278472]
[1750729892986,8.33333333,143.83,143.82,6.95313586]
[1750729893793,8.33333333,143.83,143.82,31.32650492]
[1750729894100,8.33333333,143.83,143.82,6.95313586]
[1750729894803,8.33333333,143.83,143.82,31.32650492]
[1750729895174,8.33333333,143.83,143.82,31.46866649]
[1750729895378,8.33333333,143.83,143.82,59.08226649]
[1750729896107,8.33333333,143.83,143.82,33.08226649]
[1750729897303,8.33333333,143.83,143.82,62.00226649]
[1750729898518,8.33333333,143.83,143.82,87.86010492]